fUSD/lending_fUSD_20241105
["ID","MTS","AMOUNT","RATE_DAILY","PERIOD"]
[341315453,1730766649287,-500.0,0.00030136,2]
[341315454,1730766649297,-500.0,0.00030136,2]
[341315455,1730766649306,-500.0,0.00030136,2]
[341315456,1730766649315,-500.0,0.00030136,2]
[341315457,1730766649324,-500.0,0.00030136,2]
[341315458,1730766649334,-500.0,0.00030136,2]
[341315459,1730766649343,-500.0,0.00030136,2]
[341315460,1730766649352,-500.0,0.00030136,2]
[341315461,1730766649361,-500.0,0.00030136,2]
[341315462,1730766649371,-500.0,0.00030136,2]
[341315463,1730766649380,-500.0,0.00030136,2]
[341315464,1730766649389,-500.0,0.00030136,2]
[341315465,1730766649398,-500.0,0.00030136,2]
[341315466,1730766649407,-500.0,0.00030136,2]
[341315467,1730766649416,-244.92576738,0.00030136,2]
[341315468,1730766649426,-500.0,0.00030136,2]
[341315469,1730766649435,-500.0,0.00030136,2]
[341315470,1730766649444,-260.34223141,0.00030136,2]
[341315471,1730766649453,-500.0,0.00030136,2]
[341315472,1730766649464,-500.0,0.00030136,2]
[341315473,1730766649474,-500.0,0.00030136,2]
[341315474,1730766649483,-500.0,0.00030136,2]
[341315475,1730766649492,-500.0,0.00030136,2]
[341315476,1730766649502,-500.0,0.00030136,2]
[341315477,1730766649512,-170.75,0.00030136,2]
[341315478,1730766649522,-500.0,0.00030136,2]
[341315479,1730766649531,-500.0,0.00030136,2]
[341315480,1730766649540,-500.0,0.00030136,2]
[341315481,1730766649550,-500.0,0.00030136,2]
[341315482,1730766649559,-500.0,0.00030136,2]
[341315483,1730766649569,-500.0,0.00030136,2]
[341315484,1730766649578,-500.0,0.00030136,2]
[341315485,1730766649588,-500.0,0.00030136,2]
[341315486,1730766649598,-500.0,0.00030136,2]
[341315487,1730766649607,-500.0,0.00030136,2]
[341315488,1730766649616,-500.0,0.00030136,2]
[341315489,1730766649625,-500.0,0.00030136,2]
[341315490,1730766649635,-500.0,0.00030136,2]
[341315491,1730766649644,-463.47482108,0.00030136,2]
[341315492,1730766649653,-428.45461523,0.00030136,2]
[341315493,1730766649663,-500.0,0.00030136,2]
[341315494,1730766649672,-151.0,0.00030136,7]
[341315495,1730766649681,-500.0,0.00030136,2]
[341315496,1730766649690,-500.0,0.00030136,2]
[341315497,1730766649700,-500.0,0.00030136,2]
[341315498,1730766649709,-361.98506395,0.00030136,2]
[341315499,1730766649721,-500.0,0.00030136,2]
[341315500,1730766649731,-500.0,0.00030136,2]
[341315501,1730766649744,-500.0,0.00030136,2]
[341315502,1730766649754,-500.0,0.00030136,2]
[341315503,1730766649763,-259.14698159,0.00030136,2]
[341315504,1730766649773,-500.0,0.00030136,2]
[341315505,1730766649784,-500.0,0.00030136,2]
[341315506,1730766649793,-500.0,0.00030136,2]
[341315507,1730766649803,-500.0,0.00030136,2]
[341315508,1730766649813,-381.8,0.00030136,2]
[341315509,1730766649823,-500.0,0.00030136,2]
[341315510,1730766649833,-500.0,0.00030136,2]
[341315511,1730766649842,-500.0,0.00030136,2]
[341315512,1730766649852,-500.0,0.00030136,2]
[341315513,1730766649862,-500.0,0.00030136,2]
[341315514,1730766649871,-500.0,0.00030136,2]
[341315515,1730766649925,-500.0,0.00030136,2]
[341315516,1730766649934,-500.0,0.00030136,2]
[341315517,1730766649944,-500.0,0.00030136,2]
[341315518,1730766649954,-576.52,0.00030136,2]
[341315519,1730766649964,-500.0,0.00030136,2]
[341315520,1730766649973,-500.0,0.00030136,2]
[341315521,1730766649982,-500.0,0.00030136,2]
[341315522,1730766649991,-500.0,0.00030136,2]
[341315523,1730766650003,-500.0,0.00030136,2]
[341315524,1730766650011,-500.0,0.00030136,2]
[341315525,1730766650022,-500.0,0.00030136,2]
[341315526,1730766650033,-477.44,0.00030136,2]
[341315527,1730766650042,-500.0,0.00030136,2]
[341315528,1730766650051,-500.0,0.00030136,2]
[341315529,1730766650061,-445.45,0.00030136,2]
[341315530,1730766650071,-500.0,0.00030136,2]
[341315531,1730766650081,-500.0,0.00030136,2]
[341315532,1730766650092,-500.0,0.00030136,2]
[341315533,1730766650102,-500.0,0.00030136,2]
[341315534,1730766650111,-500.0,0.00030136,2]
[341315535,1730766650121,-500.0,0.00030136,2]
[341315536,1730766650132,-500.0,0.00030136,2]
[341315537,1730766650141,-500.0,0.00030136,2]
[341315538,1730766650150,-500.0,0.00030136,2]
[341315539,1730766650159,-500.0,0.00030136,2]
[341315540,1730766650169,-500.0,0.00030136,2]
[341315541,1730766650178,-500.0,0.00030136,2]
[341315542,1730766650188,-500.0,0.00030136,2]
[341315543,1730766650197,-257.77,0.00030136,2]
[341315544,1730766650208,-182.56,0.00030136,2]
[341315545,1730766650220,-500.0,0.00030136,2]
[341315546,1730766650229,-500.0,0.00030136,2]
[341315547,1730766650238,-513.39001016,0.00030136,2]
[341315548,1730766650247,-605.78,0.00030136,2]
[341315549,1730766650257,-500.0,0.00030136,2]
[341315550,1730766650266,-500.0,0.00030136,2]
[341315551,1730766650275,-500.0,0.00030136,2]
[341315552,1730766650284,-500.0,0.00030136,2]
[341315553,1730766650292,-500.0,0.00030136,2]
[341315554,1730766650302,-500.0,0.00030136,2]
[341315555,1730766650316,-500.0,0.00030136,2]
[341315556,1730766650330,-500.0,0.00030136,2]
[341315557,1730766650339,-500.0,0.00030136,2]
[341315558,1730766650349,-2000.0,0.00030136,2]
[341315559,1730766650360,-500.0,0.00030136,2]
[341315560,1730766650369,-2000.0,0.00030136,2]
[341315561,1730766650379,-500.0,0.00030136,2]
[341315562,1730766650391,-2000.0,0.00030136,2]
[341315563,1730766650402,-500.0,0.00030136,2]
[341315564,1730766650412,-2000.0,0.00030136,2]
[341315565,1730766650422,-500.0,0.00030136,2]
[341315566,1730766650432,-1154.54448554,0.00030136,2]
[341315567,1730766650441,-500.0,0.00030136,2]
[341315568,1730766650450,-500.0,0.00030136,2]
[341315569,1730766650459,-500.0,0.00030136,2]
[341315570,1730766650469,-500.0,0.00030136,2]
[341315571,1730766650478,-500.0,0.00030136,2]
[341315572,1730766650487,-500.0,0.00030136,2]
[341315573,1730766650497,-500.0,0.00030136,2]
[341315574,1730766650506,-601.74629119,0.00030136,2]
[341315575,1730766650515,-500.0,0.00030136,2]
[341315576,1730766650524,-500.0,0.00030136,2]
[341315577,1730766650533,-500.0,0.00030136,2]
[341315578,1730766650542,-500.0,0.00030136,2]
[341315579,1730766650551,-460.92,0.00030136,2]
[341315580,1730766650560,-500.0,0.00030136,2]
[341315581,1730766650569,-500.0,0.00030136,2]
[341315582,1730766650578,-500.0,0.00030136,2]
[341315583,1730766650588,-500.0,0.00030136,2]
[341315584,1730766650597,-500.0,0.00030136,2]
[341315585,1730766650607,-500.0,0.00030136,2]
[341315586,1730766650616,-500.0,0.00030136,2]
[341315587,1730766650626,-500.0,0.00030136,2]
[341315588,1730766650635,-500.0,0.00030136,2]
[341315589,1730766650645,-500.0,0.00030136,2]
[341315590,1730766650654,-389.82,0.00030136,2]
[341315591,1730766650663,-500.0,0.00030136,2]
[341315592,1730766650674,-500.0,0.00030136,2]
[341315593,1730766650684,-500.0,0.00030136,2]
[341315594,1730766650694,-500.0,0.00030136,2]
[341315595,1730766650703,-500.0,0.00030136,2]
[341315596,1730766650713,-500.0,0.00030136,2]
[341315597,1730766650723,-533.08573291,0.00030136,2]
[341315598,1730766650733,-500.0,0.00030136,2]
[341315599,1730766650745,-500.0,0.00030136,2]
[341315600,1730766650755,-500.0,0.00030136,2]
[341315601,1730766650764,-500.0,0.00030136,2]
[341315602,1730766650775,-500.0,0.00030136,2]
[341315603,1730766650785,-500.0,0.00030136,2]
[341315604,1730766650795,-500.0,0.00030136,2]
[341315605,1730766650806,-315.18678478,0.00030136,2]
[341315606,1730766650817,-500.0,0.00030136,2]
[341315607,1730766650827,-500.0,0.00030136,2]
[341315608,1730766650838,-500.0,0.00030136,2]
[341315609,1730766650847,-500.0,0.00030136,2]
[341315610,1730766650857,-402.9,0.00030136,2]
[341315611,1730766650866,-500.0,0.00030136,2]
[341315612,1730766650876,-151.0,0.00030136,7]
[341315613,1730766650887,-500.0,0.00030136,2]
[341315614,1730766650898,-500.0,0.00030136,2]
[341315615,1730766650908,-500.0,0.00030136,2]
[341315616,1730766650917,-500.0,0.00030136,2]
[341315617,1730766650927,-500.0,0.00030136,2]
[341315618,1730766650937,-500.0,0.00030136,2]
[341315619,1730766650948,-500.0,0.00030136,2]
[341315620,1730766650958,-500.0,0.00030136,2]
[341315621,1730766650969,-500.0,0.00030136,2]
[341315622,1730766650979,-500.0,0.00030136,2]
[341315623,1730766650988,-500.0,0.00030136,2]
[341315624,1730766650998,-151.0,0.00030136,7]
[341315625,1730766651007,-647.88680603,0.00030136,2]
[341315626,1730766651017,-151.0,0.00030136,7]
[341315627,1730766651026,-500.0,0.00030136,2]
[341315628,1730766651036,-288.91946415,0.00030136,2]
[341315629,1730766651047,-240.630776,0.00030136,7]
[341315630,1730766651058,-500.0,0.00030136,2]
[341315631,1730766651069,-500.0,0.00030136,2]
[341315632,1730766651078,-500.0,0.00030136,2]
[341315633,1730766651087,-500.0,0.00030136,2]
[341315634,1730766651096,-187.2068526,0.00030136,2]
[341315635,1730766651105,-500.0,0.00030136,2]
[341315636,1730766651115,-500.0,0.00030136,2]
[341315637,1730766651123,-528.08887601,0.00030136,2]
[341315638,1730766651132,-500.0,0.00030136,2]
[341315639,1730766651142,-500.0,0.00030136,2]
[341315640,1730766651151,-155.81802032,0.00030136,2]
[341315641,1730766651162,-500.0,0.00030136,2]
[341315642,1730766651174,-412.73,0.00030136,2]
[341315643,1730766651183,-500.0,0.00030136,2]
[341315644,1730766651194,-500.0,0.00030136,2]
[341315645,1730766651203,-538.10259817,0.00030136,2]
[341315646,1730766651213,-500.0,0.00030136,2]
[341315647,1730766651223,-500.0,0.00030136,2]
[341315648,1730766651232,-500.0,0.00030136,2]
[341315649,1730766651241,-500.0,0.00030136,2]
[341315650,1730766651250,-500.0,0.00030136,2]
[341315651,1730766651259,-500.0,0.00030136,2]
[341315652,1730766651268,-503.4465207,0.00030136,2]
[341315653,1730766651278,-500.0,0.00030136,2]
[341315654,1730766651287,-500.0,0.00030136,2]
[341315655,1730766651296,-500.0,0.00030136,2]
[341315656,1730766651305,-500.0,0.00030136,2]
[341315657,1730766651314,-500.0,0.00030136,2]
[341315658,1730766651323,-179.28726986,0.00030136,2]
[341315659,1730766651764,-320.71273014,0.00030136,2]
[341315660,1730766651773,-199.53162736,0.00030136,2]
[341315661,1730766652004,-229.0,0.000288,2]
[341315662,1730766652015,-34.30633517,0.00030136,5]
[341315664,1730766713188,150.0,0.000251,60]
[341315667,1730767535187,300.0,0.00017,3]
[341315720,1730767832233,-156.54,0.00015342,2]
[341315721,1730767832242,-250.0,0.00021,2]
[341315722,1730767832251,-253.1599998,0.00023,2]
[341315735,1730767840401,-46.8400002,0.00023,2]
[341315736,1730767840411,-346.71,0.00026414,2]
[341315737,1730767840420,-163.62,0.00027766,2]
[341315738,1730767840429,-1000.0,0.00028,2]
[341315739,1730767840438,-264.0,0.00028,7]
[341315740,1730767840448,-5414.12239192,0.00028296,2]
[341315741,1730767840459,-1160.80836212,0.00028296,2]
[341315748,1730767843245,-739.83351941,0.00028296,2]
[341315749,1730767843355,-2096.67692655,0.00028296,2]
[341315750,1730767843364,-150.0,0.00028332,7]
[341315751,1730767843374,-250.0,0.00028362,2]
[341315752,1730767843382,-152.0,0.00028364,3]
[341315753,1730767843392,-173.67,0.00028365,2]
[341315754,1730767843402,-800.0,0.00028383,2]
[341315755,1730767843412,-1987.0,0.00028396,2]
[341315756,1730767843422,-1794.0,0.00028396,2]
[341315761,1730767843629,-1256.0,0.00028396,2]
[341315762,1730767843639,-2906.0,0.00028396,2]
[341315763,1730767843648,-13601.0,0.00028396,2]
[341315764,1730767843658,-1156.0,0.00028396,2]
[341315765,1730767843667,-23900.0,0.00028469,2]
[341315766,1730767843676,-346.71,0.00028678,2]
[341315767,1730767843687,-193.97,0.00028784,30]
[341315768,1730767843697,-156.54,0.00028858,2]
[341315769,1730767843707,-152.0,0.00028871,4]
[341315770,1730767843716,-440.17,0.00029178,2]
[341315771,1730767843726,-200.0,0.00029284,2]
[341315772,1730767843736,-152.0,0.00029378,5]
[341315774,1730767843745,-1000.0,0.000294,2]
[341315776,1730767843755,-677.0,0.000294,2]
[341315778,1730767843765,-181.02,0.00029546,120]
[341315779,1730767843774,-160.942816,0.00029719,2]
[341315780,1730767843783,-152.0,0.00029884,6]
[341315781,1730767843793,-791.47649717,0.00029936,2]
[341315782,1730767843802,-1718.19985531,0.00029936,15]
[341315783,1730767843812,-742.737,0.0002994,24]
[341315784,1730767843821,-791.47649715,0.00029986,2]
[341315785,1730767843831,-224.79875,0.0003,2]
[341315786,1730767843840,-224.79875,0.0003,2]
[341315787,1730767843850,-300.0,0.0003,7]
[341315788,1730767843859,-500.0,0.00030035,2]
[341315789,1730767843869,-226.59142414,0.00030035,2]
[341315790,1730767843878,-500.0,0.00030035,2]
[341315791,1730767843888,-791.47649715,0.00030035,2]
[341315792,1730767843897,-160.55038261,0.00030035,2]
[341315793,1730767843907,-308.90004638,0.00030035,2]
[341315794,1730767843916,-233.1361,0.00030036,2]
[341315795,1730767843925,-517.9218,0.00030036,2]
[341315796,1730767843934,-58939.38045507,0.00030036,2]
[341315797,1730767843956,-3402.3,0.00030036,2]
[341315868,1730769032338,-158.29,0.00015342,2]
[341315869,1730769032348,-94.75132582,0.00015342,2]
[341315875,1730769038296,-61.97867418,0.00015342,2]
[341315876,1730769038305,-156.02,0.00015342,2]
[341315877,1730769038314,-383.94700024,0.0002,2]
[341315880,1730769038359,-481.13659818,0.0002,2]
[341315882,1730769038370,-537.0,0.0002,2]
[341315884,1730769038382,-417.91640158,0.0002,2]
[341315885,1730769038391,-102.06359842,0.00021,2]
[341315886,1730769038539,-147.93640158,0.00021,2]
[341315887,1730769038551,-152.972,0.0002294,2]
[341315888,1730769038561,-152.92,0.0002368,7]
[341315889,1730769038570,-152.92,0.0002442,14]
[341315890,1730769038579,-78.42659842,0.0002516,5]
[341315919,1730769040347,-74.46540158,0.0002516,5]
[341315921,1730769040357,-152.89,0.0002535,2]
[341315923,1730769040367,-152.913,0.000259,10]
[341315925,1730769040376,-178.77809929,0.00026556,2]
[341315952,1730769040829,-150.60190071,0.00026556,2]
[341315953,1730769040839,-153.832,0.0002664,14]
[341315954,1730769040848,-1007.0,0.000273,2]
[341315955,1730769040858,-300.81,0.00028,4]
[341315956,1730769040867,-23900.0,0.00028024,2]
[341315957,1730769040877,-1987.0,0.00028396,2]
[341315958,1730769040886,-1794.0,0.00028396,2]
[341315959,1730769040895,-2906.0,0.00028396,2]
[341315960,1730769040905,-735.32873137,0.00028396,2]
[341315971,1730769043294,-520.67126863,0.00028396,2]
[341315973,1730769043304,-11.69851373,0.00028396,2]
[341315975,1730769043315,-1144.30148627,0.00028396,2]
[341315976,1730769043324,-1980.7441919,0.00028396,2]
[341315977,1730769043334,-1829.96652278,0.00028396,2]
[341315978,1730769043381,-9790.28928532,0.00028396,2]
[341315979,1730769043390,-173.68,0.00028462,2]
[341315980,1730769043399,-250.0,0.00028515,2]
[341315981,1730769043408,-150.0,0.0002853,7]
[341315982,1730769043417,-640.0,0.00028732,2]
[341315983,1730769043427,-150.0,0.00028767,2]
[341315984,1730769043436,-150.0,0.00028767,2]
[341315985,1730769043445,-150.0,0.00028767,2]
[341315986,1730769043457,-964.48,0.00028767,2]
[341315987,1730769043467,-481.37,0.00028767,2]
[341315988,1730769043481,-150.0,0.00028767,2]
[341315989,1730769043490,-150.0,0.00028767,2]
[341315990,1730769043499,-964.48,0.00028767,2]
[341315991,1730769043509,-150.0,0.00028767,2]
[341315992,1730769043519,-361.55,0.00028767,2]
[341315993,1730769043528,-150.0,0.00028767,2]
[341315994,1730769043537,-150.0,0.00028767,2]
[341315995,1730769043547,-964.48,0.00028767,2]
[341315996,1730769043556,-150.0,0.00028767,2]
[341315997,1730769043565,-150.0,0.00028767,2]
[341315998,1730769043574,-150.0,0.00028767,2]
[341315999,1730769043583,-964.48,0.00028767,2]
[341316000,1730769043593,-361.55,0.00028767,2]
[341316001,1730769043602,-154.38,0.00028767,2]
[341316002,1730769043611,-361.55,0.00028767,2]
[341316003,1730769043620,-151.13,0.0002882,2]
[341316004,1730769043629,-329.38,0.0002882,2]
[341316005,1730769043638,-158.29,0.00028858,2]
[341316006,1730769043648,-360.0,0.00028916,2]
[341316007,1730769043658,-181.02,0.00028967,120]
[341316008,1730769043667,-193.98,0.0002897,30]
[341316009,1730769043676,-964.48,0.00029278,2]
[341316010,1730769043686,-150.0,0.00029278,2]
[341316011,1730769043697,-150.0,0.00029278,2]
[341316012,1730769043708,-153.72,0.00029278,2]
[341316013,1730769043719,-300.0,0.00029278,2]
[341316014,1730769043731,-1000.0,0.000294,2]
[341316015,1730769043740,-361.55,0.00029589,2]
[341316016,1730769043749,-306.82,0.00029589,2]
[341316017,1730769043760,-361.55,0.00029589,2]
[341316018,1730769043771,-150.0,0.00029589,2]
[341316019,1730769043781,-1029.16,0.00029589,2]
[341316020,1730769043791,-153.81,0.00029589,2]
[341316021,1730769043800,-150.0,0.00029589,2]
[341316022,1730769043811,-150.0,0.00029589,2]
[341316023,1730769043822,-150.0,0.00029589,2]
[341316024,1730769043832,-300.0,0.00029589,2]
[341316025,1730769043841,-150.0,0.00029589,2]
[341316026,1730769043851,-361.55,0.00029589,2]
[341316027,1730769043860,-361.55,0.00029589,2]
[341316028,1730769043870,-150.0,0.00029589,2]
[341316029,1730769043879,-361.55,0.00029589,2]
[341316030,1730769043889,-361.55,0.00029589,2]
[341316031,1730769043899,-227.36,0.00029589,2]
[341316032,1730769043908,-677.0,0.000297,2]
[341316033,1730769043917,-2016.8794,0.00029715,2]
[341316034,1730769043927,-1685.0122,0.00029715,2]
[341316035,1730769043937,-263.0848,0.00029715,2]
[341316036,1730769043947,-3587.7861,0.00029715,2]
[341316037,1730769043958,-7327.7435,0.00029715,2]
[341316038,1730769043967,-791.47649717,0.00029735,2]
[341316039,1730769043980,-7029.822,0.00029782,2]
[341316040,1730769043990,-1718.19985531,0.00029782,15]
[341316041,1730769044000,-791.47649715,0.00029786,2]
[341316042,1730769044011,-172.39,0.00029805,10]
[341316043,1730769044020,-861.95,0.00029805,10]
[341316044,1730769044032,-9999.99,0.00029815,2]
[341316045,1730769044041,-6358.46,0.00029815,2]
[341316046,1730769044052,-29999.99,0.00029815,2]
[341316047,1730769044063,-2813.7216,0.00029835,2]
[341316048,1730769044072,-2500.0,0.00029836,2]
[341316049,1730769044083,-791.47649715,0.00029836,2]
[341316050,1730769044093,-150.0,0.00029866,2]
[341316051,1730769044103,-150.0,0.00029875,2]
[341316052,1730769044112,-150.0,0.00029877,2]
[341316053,1730769044122,-1500.0,0.00029878,2]
[341316054,1730769044132,-150.0,0.00029881,2]
[341316055,1730769044142,-10155.03574197,0.00029882,2]
[341316056,1730769044159,-377.338759,0.00029882,2]
[341316057,1730769044235,-2102.49634201,0.00029882,2]
[341316058,1730769044247,-3004.13826426,0.00029882,2]
[341316059,1730769044271,-9018.59284828,0.00029882,2]
[341316085,1730769046485,-582.18704448,0.00029882,2]
[341316086,1730769046494,-11464.48283967,0.00029882,2]
[341316087,1730769046654,-898.44250738,0.00029882,2]
[341316182,1730770225250,175.0,0.00017,3]
[341316200,1730770231650,-188.36,0.00015342,2]
[341316201,1730770231660,-249.873,0.00018499,2]
[341316202,1730770231851,-563.94730121,0.0001892,2]
[341316203,1730770231924,-3633.09471819,0.0001892,2]
[341316204,1730770231996,-6656.30102345,0.0001892,2]
[341316205,1730770232008,-12561.42879897,0.0001892,2]
[341316206,1730770237666,-1892.27757239,0.0001892,2]
[341316214,1730770237837,-865.1330739,0.0001892,2]
[341316215,1730770237851,-6263.06368725,0.0001892,2]
[341316395,1730770240049,-2430.26205828,0.0001892,2]
[341316396,1730770240061,-3392.90614043,0.0001892,2]
[341316534,1730770243435,-623.2797952,0.0001892,2]
[341316536,1730770243446,-847.96369967,0.0001892,2]
[341316538,1730770243456,-375.0,0.0002,2]
[341316540,1730770243465,-188.36,0.00021745,2]
[341316542,1730770243476,-188.31903757,0.00026721,2]
[341316544,1730770243486,-1605.68096243,0.00026721,2]
[341316545,1730770243496,-318.19,0.00026764,2]
[341316546,1730770243508,-165.95,0.0002681,2]
[341316547,1730770243518,-327.28599721,0.00028,15]
[341316548,1730770243530,-2906.0,0.00028096,2]
[341316549,1730770243539,-304.7,0.00028096,2]
[341316550,1730770243548,-176.721,0.00028096,2]
[341316551,1730770243557,-11802.34738563,0.00028096,2]
[341316552,1730770243615,-1803.65261437,0.00028096,2]
[341316553,1730770243624,-270.067,0.00028096,2]
[341316554,1730770243634,-1987.0,0.00028096,2]
[341316555,1730770243644,-188.36,0.00028147,2]
[341316556,1730770243653,-17012.45,0.00028194,2]
[341316557,1730770243663,-184.28,0.00028249,30]
[341316558,1730770243672,-152.0,0.00028367,3]
[341316559,1730770243682,-250.0,0.00028386,2]
[341316560,1730770243695,-1000.0,0.0002864,2]
[341316561,1730770243705,-220.47,0.0002869,10]
[341316562,1730770243714,-183.72,0.0002869,10]
[341316563,1730770243724,-153.1,0.0002869,10]
[341316564,1730770243733,-150.0,0.000287,7]
[341316565,1730770243743,-6358.46,0.000287,2]
[341316566,1730770243753,-9999.99,0.000287,2]
[341316567,1730770243762,-29999.99,0.000287,2]
[341316568,1730770243774,-793.62341792,0.00028774,2]
[341316569,1730770243784,-152.0,0.00028874,4]
[341316570,1730770243794,-318.19,0.00029028,2]
[341316572,1730770243804,-1718.19985531,0.00029036,15]
[341316574,1730770243813,-249.873,0.00029073,2]
[341316575,1730770243827,-500.0,0.00029136,7]
[341316576,1730770243845,-500.0,0.00029136,7]
[341316577,1730770243890,-500.0,0.00029136,7]
[341316578,1730770243973,-500.0,0.00029136,7]
[341316579,1730770244058,-500.0,0.00029136,7]
[341316580,1730770244150,-438.56280115,0.00029136,7]
[341316581,1730770244217,-61.43719885,0.00029136,7]
[341316582,1730770244296,-500.0,0.00029136,7]
[341316583,1730770244385,-500.0,0.00029136,7]
[341316585,1730770244492,-500.0,0.00029136,7]
[341316588,1730770244598,-500.0,0.00029136,7]
[341316590,1730770244696,-500.0,0.00029136,7]
[341316592,1730770244783,-500.0,0.00029136,7]
[341316593,1730770244793,-500.0,0.00029136,7]
[341316594,1730770244803,-500.0,0.00029136,7]
[341316595,1730770244815,-500.0,0.00029136,7]
[341316596,1730770244824,-500.0,0.00029136,7]
[341316597,1730770244833,-198.97235433,0.00029136,7]
[341316598,1730770244847,-301.02764567,0.00029136,7]
[341316599,1730770244861,-299.20356467,0.00029136,7]
[341316635,1730770245805,-200.79643533,0.00029136,7]
[341316637,1730770245818,-458.51534098,0.00029136,7]
[341316639,1730770245831,-41.48465902,0.00029136,7]
[341316641,1730770245843,-500.0,0.00029136,7]
[341316643,1730770245855,-500.0,0.00029136,7]
[341316645,1730770245864,-500.0,0.00029136,7]
[341316647,1730770245875,-500.0,0.00029136,7]
[341316649,1730770245884,-500.0,0.00029136,7]
[341316651,1730770245894,-482.57201182,0.00029136,7]
[341316660,1730770245970,-17.42798818,0.00029136,7]
[341316662,1730770245982,-500.0,0.00029136,7]
[341316664,1730770245992,-14.56831501,0.00029136,7]
[341316701,1730771431779,-156.54,0.00015342,2]
[341316702,1730771431788,-158.29,0.00015342,2]
[341316704,1730771431798,-168.22490389,0.00021,2]
[341316705,1730771431811,-81.77509611,0.00021,2]
[341316706,1730771431820,-300.0,0.00023,2]
[341316707,1730771431829,-338.18,0.00026201,2]
[341316708,1730771431839,-165.23,0.00027334,2]
[341316709,1730771431849,-948.535,0.00027736,2]
[341316710,1730771431860,-247.431,0.00027736,2]
[341316711,1730771431869,-205.694,0.00027736,2]
[341316712,1730771431879,-347.703,0.00027736,2]
[341316713,1730771431889,-432.31,0.00027978,2]
[341316714,1730771431898,-800.0,0.00028082,2]
[341316715,1730771431908,-150.0,0.00028084,7]
[341316716,1730771431917,-299.83,0.00028106,2]
[341316717,1730771431928,-250.0,0.00028134,2]
[341316718,1730771431939,-923.66,0.00028186,2]
[341316719,1730771431948,-175.06,0.00028463,30]
[341316720,1730771431957,-338.18,0.00028465,2]
[341316721,1730771431966,-432.31,0.00028478,2]
[341316722,1730771431976,-220.78,0.00028478,2]
[341316723,1730771431985,-432.31,0.00028478,2]
[341316724,1730771431993,-150.0,0.00028478,2]
[341316725,1730771432003,-432.31,0.00028478,2]
[341316726,1730771432012,-432.31,0.00028478,2]
[341316727,1730771432021,-150.0,0.00028478,2]
[341316728,1730771432030,-150.0,0.00028478,2]
[341316729,1730771432039,-170.61,0.00028535,2]
[341316730,1730771432048,-442.3,0.00028578,2]
[341316731,1730771432057,-200.0,0.00028612,2]
[341316732,1730771432066,-150.0,0.00028767,2]
[341316733,1730771432075,-239.77,0.00028767,2]
[341316734,1730771432085,-150.0,0.00028767,2]
[341316735,1730771432095,-150.0,0.00028767,2]
[341316736,1730771432104,-150.0,0.00028767,2]
[341316737,1730771432113,-794.33,0.00028767,2]
[341316738,1730771432122,-150.0,0.00028767,2]
[341316739,1730771432131,-939.11,0.00028767,2]
[341316740,1730771432140,-154.71,0.00028767,2]
[341316741,1730771432149,-150.0,0.00028767,2]